fUSD/lending_fUSD_20251118
["ID","MTS","AMOUNT","RATE_DAILY","PERIOD"]
[394352004,1763481055740,-1468.68,0.0004,3]
[394352005,1763481055749,-500.0,0.0004,3]
[394352006,1763481055759,-500.0,0.0004,3]
[394352007,1763481055768,-3990.87,0.0004,3]
[394352008,1763481055777,-1372.17,0.0004,3]
[394352009,1763481055786,-1398.81,0.0004,3]
[394352010,1763481055796,-690.49,0.0004,3]
[394352011,1763481055806,-932.59,0.0004,3]
[394352012,1763481055819,-988.16,0.0004,3]
[394352013,1763481055829,-882.78,0.0004,3]
[394352014,1763481055838,-564.96,0.0004,3]
[394352015,1763481055848,-500.0,0.0004,3]
[394352016,1763481055858,-633.87256492,0.0004,3]
[394352017,1763481055868,-500.0,0.0004,2]
[394352018,1763481055878,-500.0,0.0004,2]
[394352019,1763481055888,-150.0,0.0004,2]
[394352020,1763481055898,-150.0,0.0004,2]
[394352021,1763481055907,-150.0,0.0004,2]
[394352022,1763481055917,-150.0,0.0004,2]
[394352023,1763481055926,-150.0,0.0004,2]
[394352024,1763481056094,-170.34,0.0004,2]
[394352025,1763481056103,-156.03894879,0.00040093,120]
[394352026,1763481056113,-500.0,0.0004022,30]
[394352027,1763481056122,-500.0,0.00040273,2]
[394352028,1763481056131,-366.33137264,0.00040273,2]
[394352029,1763481056141,-500.0,0.00040273,3]
[394352030,1763481056150,-500.0,0.00040273,2]
[394352031,1763481056159,-500.0,0.00040273,3]
[394352032,1763481056168,-500.0,0.00040273,3]
[394352033,1763481056178,-2088.19,0.00040273,2]
[394352034,1763481056187,-500.0,0.00040273,3]
[394352035,1763481056199,-500.0,0.00040273,2]
[394352036,1763481056209,-300.0,0.00040273,2]
[394352037,1763481056219,-500.0,0.00040273,3]
[394352038,1763481056228,-300.0,0.00040273,2]
[394352039,1763481056237,-738.07,0.00040273,3]
[394352040,1763481056247,-500.0,0.00040273,3]
[394352041,1763481056256,-500.0,0.00040273,3]
[394352042,1763481056266,-1807.79,0.00040273,3]
[394352043,1763481056275,-500.0,0.00040273,3]
[394352044,1763481056285,-1468.68,0.00040273,3]
[394352045,1763481056294,-500.0,0.00040273,3]
[394352046,1763481056302,-500.0,0.00040273,3]
[394352047,1763481056312,-3990.87,0.00040273,3]
[394352048,1763481056321,-1372.17,0.00040273,3]
[394352049,1763481056332,-1398.81,0.00040273,3]
[394352050,1763481056342,-690.49,0.00040273,3]
[394352051,1763481056352,-932.59,0.00040273,3]
[394352052,1763481056361,-988.16,0.00040273,3]
[394352053,1763481056371,-882.78,0.00040273,3]
[394352054,1763481056381,-564.96,0.00040273,3]
[394352055,1763481056390,-500.0,0.00040273,3]
[394352056,1763481056399,-500.0,0.00040273,2]
[394352057,1763481056410,-500.0,0.00040273,2]
[394352058,1763481056420,-1205.46,0.000403,30]
[394352059,1763481056429,-9514.2,0.000403,14]
[394352060,1763481056439,-7101.41335451,0.00040325,15]
[394352061,1763481056450,-300.0,0.00040349,2]
[394352062,1763481056459,-1000.0,0.00040364,2]
[394352063,1763481056469,-500.0,0.00040382,30]
[394352064,1763481056478,-6355.51844404,0.00040396,2]
[394352065,1763481056488,-1000.0,0.000404,7]
[394352066,1763481056498,-325.97619083,0.00040519,2]
[394352067,1763481056508,-177.39,0.00040521,2]
[394352068,1763481056518,-500.0,0.00040531,30]
[394352069,1763481056528,-503.34782219,0.00040547,2]
[394352070,1763481056537,-500.0,0.00040547,3]
[394352071,1763481056547,-505.7621655,0.00040547,2]
[394352072,1763481056556,-500.0,0.00040547,3]
[394352073,1763481056565,-500.0,0.00040547,3]
[394352074,1763481056575,-2088.19,0.00040547,2]
[394352075,1763481056584,-500.0,0.00040547,2]
[394352076,1763481056593,-300.0,0.00040547,2]
[394352077,1763481056603,-500.0,0.00040547,3]
[394352078,1763481056612,-302.21826258,0.00040547,2]
[394352079,1763481056621,-738.07,0.00040547,3]
[394352080,1763481056630,-500.0,0.00040547,3]
[394352081,1763481056640,-632.65,0.00040547,3]
[394352082,1763481056650,-1807.79,0.00040547,3]
[394352083,1763481056659,-500.0,0.00040547,3]
[394352084,1763481056669,-1468.68,0.00040547,3]
[394352085,1763481056679,-500.0,0.00040547,3]
[394352086,1763481056688,-500.0,0.00040547,3]
[394352087,1763481056700,-3990.87,0.00040547,3]
[394352088,1763481056710,-1372.17,0.00040547,3]
[394352089,1763481056719,-1398.81,0.00040547,3]
[394352090,1763481056729,-690.49,0.00040547,3]
[394352091,1763481056739,-932.59,0.00040547,3]
[394352092,1763481056749,-988.16,0.00040547,3]
[394352093,1763481056759,-882.78,0.00040547,3]
[394352094,1763481056768,-564.96,0.00040547,3]
[394352095,1763481056778,-500.0,0.00040547,3]
[394352096,1763481056787,-500.0,0.00040547,2]
[394352097,1763481056797,-500.0,0.00040547,2]
[394352098,1763481056810,-500.0,0.00040584,30]
[394352099,1763481056819,-500.0,0.00040602,30]
[394352100,1763481056829,-300.0,0.00040658,2]
[394352101,1763481056839,-500.0,0.00040666,7]
[394352102,1763481056849,-511.47,0.00040666,7]
[394352103,1763481056859,-528.12,0.00040666,7]
[394352104,1763481056869,-300.0,0.00040667,2]
[394352105,1763481056879,-336.3872775,0.00040682,13]
[394352106,1763481056890,-336.3872774,0.00040682,13]
[394352107,1763481056900,-336.3872774,0.00040682,13]
[394352108,1763481056909,-336.3872774,0.00040682,13]
[394352109,1763481056918,-336.3872774,0.00040682,13]
[394352110,1763481056928,-336.3872774,0.00040682,13]
[394352111,1763481056937,-336.3872774,0.00040682,13]
[394352112,1763481056949,-336.3872774,0.00040682,13]
[394352113,1763481056959,-336.3872774,0.00040682,13]
[394352114,1763481056968,-336.3872774,0.00040682,13]
[394352115,1763481056978,-336.3872774,0.00040682,13]
[394352116,1763481056987,-336.3872774,0.00040682,13]
[394352117,1763481056997,-336.3872774,0.00040682,13]
[394352118,1763481057006,-700.6,0.00040712,2]
[394352119,1763481057016,-478.46,0.00040712,2]
[394352120,1763481057026,-478.46,0.00040712,2]
[394352121,1763481057035,-700.6,0.00040712,2]
[394352122,1763481057044,-478.46,0.00040712,2]
[394352123,1763481057055,-700.6,0.00040712,2]
[394352124,1763481057065,-238.28,0.00040712,2]
[394352125,1763481057074,-478.46,0.00040712,2]
[394352126,1763481057084,-478.46,0.00040712,2]
[394352127,1763481057093,-478.46,0.00040712,2]
[394352128,1763481057103,-478.46,0.00040712,2]
[394352129,1763481057112,-478.46,0.00040712,2]
[394352130,1763481057122,-478.46,0.00040712,2]
[394352131,1763481057131,-478.46,0.00040712,2]
[394352132,1763481057141,-336.3872774,0.00040774,13]
[394352133,1763481057150,-300.0,0.00040786,2]
[394352134,1763481057160,-806.97814948,0.000408,120]
[394352135,1763481057169,-500.0,0.00040821,3]
[394352136,1763481057178,-500.0,0.00040821,3]
[394352137,1763481057187,-500.0,0.00040821,3]
[394352138,1763481057198,-2088.19,0.00040821,2]
[394352139,1763481057207,-500.0,0.00040821,2]
[394352140,1763481057217,-303.80567688,0.00040821,2]
[394352141,1763481057227,-500.0,0.00040821,3]
[394352142,1763481057236,-738.07,0.00040821,3]
[394352143,1763481057245,-263.31063006,0.00040821,3]
[394352144,1763481057255,-1807.79,0.00040821,3]
[394352145,1763481057265,-500.0,0.00040821,3]
[394352146,1763481057275,-1468.68,0.00040821,3]
[394352147,1763481057284,-500.0,0.00040821,3]
[394352148,1763481057293,-500.0,0.00040821,3]
[394352149,1763481057302,-3990.87,0.00040821,3]
[394352150,1763481057312,-1372.17,0.00040821,3]
[394352151,1763481057321,-1398.81,0.00040821,3]
[394352152,1763481057330,-690.49,0.00040821,3]
[394352153,1763481057340,-932.59,0.00040821,3]
[394352154,1763481057349,-988.16,0.00040821,3]
[394352155,1763481057358,-882.78,0.00040821,3]
[394352156,1763481057368,-564.96,0.00040821,3]
[394352157,1763481057377,-500.0,0.00040821,2]
[394352158,1763481057386,-500.0,0.00040821,2]
[394352159,1763481057395,-500.0,0.00040839,30]
[394352160,1763481057404,-180.37,0.00040843,60]
[394352161,1763481057413,-199.41,0.00040849,2]
[394352162,1763481057422,-150.0,0.00040849,2]
[394352163,1763481057431,-150.0,0.00040849,2]
[394352164,1763481057440,-150.0,0.00040849,2]
[394352165,1763481057451,-1209.53,0.00040849,2]
[394352166,1763481057460,-150.0,0.00040849,2]
[394352167,1763481057469,-416.87,0.00040849,2]
[394352168,1763481057479,-150.21,0.00040849,2]
[394352169,1763481057488,-169.49,0.00040849,2]
[394352170,1763481057498,-150.0,0.00040849,2]
[394352171,1763481057507,-169.49,0.00040849,2]
[394352172,1763481057517,-150.0,0.00040849,2]
[394352173,1763481057526,-416.87,0.00040849,2]
[394352174,1763481057536,-150.0,0.00040849,2]
[394352175,1763481057545,-1209.53,0.00040849,2]
[394352176,1763481057554,-177.39,0.00040849,2]
[394352177,1763481057564,-150.0,0.00040849,2]
[394352178,1763481057573,-1209.53,0.00040849,2]
[394352179,1763481057582,-416.87,0.00040849,2]
[394352180,1763481057591,-150.0,0.00040849,2]
[394352181,1763481057601,-150.0,0.00040849,2]
[394352182,1763481057610,-169.49,0.00040849,2]
[394352183,1763481057619,-150.0,0.00040849,2]
[394352184,1763481057629,-150.0,0.00040849,2]
[394352185,1763481057638,-150.0,0.00040849,2]
[394352186,1763481057647,-150.0,0.00040849,2]
[394352187,1763481057655,-177.39,0.00040849,2]
[394352188,1763481057664,-150.0,0.00040849,2]
[394352189,1763481057673,-169.49,0.00040849,2]
[394352190,1763481057682,-416.87,0.00040849,2]
[394352191,1763481057691,-1209.53,0.00040849,2]
[394352192,1763481057702,-150.0,0.00040849,2]
[394352193,1763481057711,-1209.53,0.00040849,2]
[394352194,1763481057720,-150.0,0.00040849,2]
[394352195,1763481057729,-150.0,0.00040849,2]
[394352196,1763481057739,-150.0,0.00040849,2]
[394352197,1763481057748,-177.39,0.00040849,2]
[394352198,1763481057757,-169.49,0.00040849,2]
[394352199,1763481057767,-150.0,0.00040849,2]
[394352200,1763481057777,-416.87,0.00040849,2]
[394352201,1763481057786,-150.0,0.00040849,2]
[394352202,1763481057795,-177.39,0.00040849,2]
[394352203,1763481057805,-150.0,0.00040849,2]
[394352204,1763481057817,-416.87,0.00040849,2]
[394352205,1763481057826,-176.83,0.00040849,2]
[394352206,1763481057835,-150.0,0.00040849,2]
[394352207,1763481057845,-150.0,0.00040849,2]
[394352208,1763481057854,-150.0,0.00040849,2]
[394352209,1763481057863,-150.0,0.00040849,2]
[394352210,1763481057872,-150.0,0.00040849,2]
[394352211,1763481057881,-177.39,0.00040849,2]
[394352212,1763481057890,-150.0,0.00040849,2]
[394352213,1763481057899,-150.0,0.00040849,2]
[394352214,1763481057908,-416.87,0.00040849,2]
[394352215,1763481057917,-150.0,0.00040849,2]
[394352216,1763481057926,-416.87,0.00040849,2]
[394352217,1763481057935,-150.0,0.00040849,2]
[394352218,1763481057946,-150.0,0.00040849,2]
[394352219,1763481057955,-177.39,0.00040849,2]
[394352220,1763481057964,-150.0,0.00040849,2]
[394352221,1763481057974,-177.39,0.00040849,2]
[394352222,1763481057983,-150.0,0.00040849,2]
[394352223,1763481057992,-150.0,0.00040849,2]
[394352224,1763481058001,-150.0,0.00040849,2]
[394352225,1763481058010,-150.0,0.00040849,2]
[394352226,1763481058019,-416.87,0.00040849,2]
[394352227,1763481058028,-177.39,0.00040849,2]
[394352228,1763481058038,-150.0,0.00040849,2]
[394352229,1763481058046,-150.0,0.00040849,2]
[394352230,1763481058055,-150.0,0.00040849,2]
[394352231,1763481058064,-416.87,0.00040849,2]
[394352232,1763481058074,-300.0,0.00040859,2]
[394352233,1763481058083,-159.86537393,0.00040877,2]
[394352234,1763481058092,-169.32,0.000409,30]
[394352235,1763481058102,-1110.78839735,0.00040967,7]
[394352236,1763481058111,-25000.0,0.00040968,14]
[394352237,1763481058119,-25000.0,0.00040977,14]
[394352238,1763481058128,-197.93321318,0.00040982,120]
[394352239,1763481058138,-500.0,0.00040999,3]
[394352240,1763481058147,-160.0,0.00041,7]
[394352241,1763481058156,-826.0,0.00041,30]
[394352242,1763481058165,-479.30025826,0.00041,7]
[394352243,1763481058174,-251.357304,0.00041,120]
[394352244,1763481058183,-611.34372156,0.00041,2]
[394352245,1763481058191,-300.0,0.00041001,2]
[394352246,1763481058203,-500.0,0.00041058,30]
[394352247,1763481058212,-21011.90095936,0.0004106,14]
[394352248,1763481058221,-25000.0,0.00041068,14]
[394352249,1763481058230,-13159.00319326,0.00041075,14]
[394352250,1763481058240,-25000.0,0.00041077,14]
[394352251,1763481058249,-500.0,0.00041094,3]
[394352252,1763481058258,-500.0,0.00041095,3]
[394352253,1763481058267,-500.0,0.00041095,3]
[394352254,1763481058277,-500.0,0.00041095,3]
[394352255,1763481058286,-2088.19,0.00041095,2]
[394352256,1763481058296,-500.0,0.00041095,2]
[394352257,1763481058305,-500.0,0.00041095,3]
[394352258,1763481058315,-738.07,0.00041095,3]
[394352259,1763481058325,-1807.79,0.00041095,3]
[394352260,1763481058334,-500.0,0.00041095,3]
[394352261,1763481058344,-1468.68,0.00041095,3]
[394352262,1763481058353,-500.0,0.00041095,3]
[394352263,1763481058362,-376.95293419,0.00041095,3]
[394352264,1763481058371,-3990.87,0.00041095,3]
[394352265,1763481058381,-1372.17,0.00041095,3]
[394352266,1763481058390,-1398.81,0.00041095,3]
[394352267,1763481058400,-690.49,0.00041095,3]
[394352268,1763481058411,-932.59,0.00041095,3]
[394352269,1763481058526,-988.16,0.00041095,3]
[394352270,1763481058537,-882.78,0.00041095,3]
[394352271,1763481058546,-564.96,0.00041095,3]
[394352272,1763481058555,-500.0,0.00041095,2]
[394352273,1763481058564,-500.0,0.00041095,2]
[394352274,1763481058573,-154.65,0.00041096,2]
[394352275,1763481058583,-8347.56,0.00041096,120]
[394352276,1763481058592,-1205.46,0.000411,30]
[394352277,1763481058600,-9514.2,0.000411,14]
[394352278,1763481058609,-386.0,0.000411,2]
[394352279,1763481058618,-300.0,0.00041156,2]
[394352280,1763481058627,-500.0,0.00041171,30]
[394352281,1763481058636,-300.0,0.00041251,2]
[394352282,1763481058645,-152.0,0.00041256,3]
[394352283,1763481058655,-31582.63202379,0.00041277,14]
[394352284,1763481058664,-300.0,0.00041279,2]
[394352285,1763481058674,-300.0,0.00041284,2]
[394352286,1763481058683,-506.62413117,0.00041285,90]
[394352287,1763481058692,-611.34372154,0.00041291,2]
[394352288,1763481058702,-500.0,0.00041369,3]
[394352289,1763481058712,-207.04516164,0.00041369,3]
[394352290,1763481058721,-500.0,0.00041369,3]
[394352291,1763481058732,-2088.19,0.00041369,2]
[394352292,1763481058742,-500.0,0.00041369,2]
[394352293,1763481058751,-500.0,0.00041369,3]
[394352294,1763481058760,-738.07,0.00041369,3]
[394352295,1763481058769,-1807.79,0.00041369,3]
[394352296,1763481058779,-500.0,0.00041369,3]
[394352297,1763481058788,-31.82936986,0.00041369,3]
[394352298,1763481058803,-283.10812009,0.00041369,3]
[394352299,1763481058818,-1153.74251005,0.00041369,3]
[394352300,1763481058828,-500.0,0.00041369,3]
[394352301,1763481058837,-3990.87,0.00041369,3]
[394352302,1763481058846,-1372.17,0.00041369,3]
[394352303,1763481058856,-1398.81,0.00041369,3]
[394352304,1763481058866,-690.49,0.00041369,3]
[394352305,1763481058876,-932.59,0.00041369,3]
[394352306,1763481058886,-988.16,0.00041369,3]
[394352307,1763481058895,-882.78,0.00041369,3]
[394352308,1763481058905,-564.96,0.00041369,3]
[394352309,1763481058915,-500.0,0.00041369,2]
[394352310,1763481058926,-500.0,0.00041369,2]
[394352311,1763481058935,-397.8011829,0.000414,120]
[394352312,1763481058946,-2305.99783383,0.0004144,2]
[394352313,1763481058955,-300.0,0.0004146,2]
[394352314,1763481058964,-300.0,0.0004146,2]
[394352315,1763481058973,-500.0,0.00041469,3]
[394352316,1763481058982,-500.0,0.00041469,3]
[394352317,1763481058991,-500.0,0.00041472,3]
[394352318,1763481059000,-500.0,0.00041472,3]
[394352319,1763481059009,-50351.49355494,0.00041472,30]
[394352320,1763481059024,-51329.55694572,0.00041472,30]
[394352321,1763481059036,-115410.11050118,0.00041472,30]
[394352322,1763481062351,300.0,0.00019874,120]
[394352323,1763481063123,5000.0,0.00019874,120]
[394352324,1763481064238,193.0,0.00019874,120]
[394352325,1763481066290,300.0,0.00019874,119]
[394352328,1763481142382,533.13756254,0.00041682,30]
[394352398,1763481414264,250.0,0.00041685,30]
[394352454,1763481797630,933.28184381,0.00041681,120]
[394352455,1763481801030,1048.79352834,0.00041681,120]
[394352457,1763482011576,262.46,0.00026011,120]
[394352461,1763482092388,114000.0,0.00041687,120]
[394352475,1763482171490,212.869,0.00030137,120]
[394352486,1763482208185,366.44,8.585e-05,2]
[394352487,1763482210591,366.44,9.037e-05,2]
[394352488,1763482211556,366.44,9.489e-05,2]
[394352490,1763482211786,366.44,9.94e-05,2]
[394352491,1763482212080,366.44,0.00010392,2]
[394352492,1763482212322,366.44,0.00010844,2]
[394352493,1763482212518,366.44,0.00011296,2]
[394352494,1763482212799,366.44,0.00011748,2]
[394352495,1763482213037,366.44,0.000122,2]
[394352496,1763482213573,366.44,0.00012652,2]
[394352498,1763482226256,366.44,0.00013103,2]
[394352521,1763482232115,-172.85,0.00016611,2]
[394352523,1763482232126,-250.0,0.00016806,2]
[394352525,1763482232136,-250.0,0.00017,2]
[394352527,1763482232146,-250.0,0.00017063,2]
[394352529,1763482232155,-262.46,0.0001734,2]
[394352531,1763482232165,-166.66,0.00017499,2]
[394352534,1763482232177,-1200.0,0.00017541,2]
[394352535,1763482232188,-300.0,0.00017541,2]
[394352538,1763482232208,-4744.64245475,0.00017542,2]
[394352540,1763482232227,-1403.91228317,0.00017542,2]
[394352541,1763482232238,-7914.48771683,0.00017625,2]
[394352542,1763482232250,-6240.0,0.00017625,2]
[394352544,1763482232291,-443.8799998,0.00017625,2]
[394352546,1763482232306,-1323.05998382,0.00017625,2]
[394352551,1763482232346,-2943.35012393,0.00017625,2]
[394352553,1763482232359,-31004.55604664,0.00017625,2]
[394352573,1763482234130,366.44,0.00013555,2]
[394352574,1763482234346,366.44,0.00014007,2]
[394352575,1763482234580,366.44,0.00014459,2]
[394352576,1763482234859,366.44,0.00014911,2]
[394352577,1763482235091,366.44,0.00015363,2]
[394352578,1763482235366,366.44,0.00015814,2]
[394352587,1763482238258,-366.44,0.00016266,2]
[394352588,1763482238269,-366.44,0.00016718,2]
[394352589,1763482238279,-366.44,0.0001717,2]
[394352590,1763482238290,-710130.66612898,0.00017625,2]
[394352591,1763482238299,-500.0,0.00017673,2]
[394352592,1763482238315,-501.87365056,0.00017673,2]
[394352593,1763482238325,-500.0,0.00017673,2]
[394352594,1763482238334,-627.58559871,0.00017673,2]
[394352595,1763482238345,-500.0,0.00017673,2]
[394352596,1763482238355,-300.0,0.00017723,2]
[394352597,1763482238366,-550.0,0.00017724,2]
[394352598,1763482238376,-65796.36,0.00017725,2]
[394352599,1763482238387,-500.0,0.00017773,2]
[394352600,1763482238397,-500.0,0.00017773,2]
[394352601,1763482238407,-500.0,0.00017773,2]
[394352602,1763482238417,-500.0,0.00017773,2]
[394352603,1763482238428,-492.0,0.00017773,2]
[394352604,1763482238438,-502.08541522,0.00017773,2]
[394352605,1763482238448,-500.0,0.00017773,2]
[394352606,1763482238458,-500.0,0.00017773,2]
[394352607,1763482238469,-501.82142704,0.00017773,2]
[394352608,1763482238481,-500.0,0.00017773,2]
[394352609,1763482238496,-500.0,0.00017773,2]
[394352611,1763482238507,-233.36599711,0.00017773,2]
[394352613,1763482238517,-166.66,0.00017867,2]
[394352615,1763482238528,-5179.18372354,0.00017973,2]
[394352617,1763482238538,-1629.0674,0.00018055,2]
[394352619,1763482238548,-500.0,0.00018067,2]
[394352621,1763482238561,-500.0,0.00018067,2]
[394352623,1763482238570,-500.0,0.00018067,2]
[394352625,1763482238580,-500.0,0.00018067,2]
[394352627,1763482238590,-537.3881987,0.00018067,2]
[394352629,1763482238600,-1301.144,0.00018067,2]
[394352631,1763482238610,-500.0,0.00018067,2]
[394352633,1763482238620,-403.64742423,0.00018067,2]
[394352635,1763482238630,-500.0,0.00018067,2]
[394352637,1763482238641,-500.0,0.00018067,2]
[394352639,1763482238650,-500.0,0.00018067,2]
[394352641,1763482238660,-500.0,0.00018067,2]
[394352643,1763482238670,-500.0,0.00018067,2]
[394352645,1763482238679,-500.0,0.00018067,2]
[394352647,1763482238689,-500.0,0.00018067,2]
[394352649,1763482238699,-151.32338748,0.00018067,2]
[394352651,1763482238709,-500.0,0.00018067,2]
[394352653,1763482238718,-500.0,0.00018067,2]
[394352655,1763482238728,-500.0,0.00018067,2]
[394352656,1763482238738,-366.31333729,0.00018067,2]
[394352658,1763482238748,-1209.77,0.00018067,2]
[394352660,1763482238758,-500.0,0.00018067,2]
[394352662,1763482238767,-500.0,0.00018067,2]
[394352664,1763482238778,-500.0,0.00018067,2]
[394352666,1763482238789,-339.87021823,0.00018067,2]
[394352668,1763482238799,-500.0,0.00018067,2]
[394352670,1763482238812,-213.9179736,0.00018067,2]
[394352672,1763482238822,-500.0,0.00018067,2]
[394352674,1763482238832,-500.0,0.00018067,2]
[394352676,1763482238842,-500.0,0.00018067,2]
[394352679,1763482238852,-500.0,0.00018067,2]
[394352681,1763482238862,-500.0,0.00018067,2]
[394352683,1763482238872,-500.0,0.00018067,2]
[394352685,1763482238882,-500.0,0.00018067,2]
[394352687,1763482238892,-500.0,0.00018067,2]
[394352689,1763482238902,-500.0,0.00018067,2]
[394352691,1763482238912,-499.78753188,0.00018067,2]
[394352692,1763482238922,-500.0,0.00018067,2]
[394352695,1763482238932,-500.0,0.00018067,2]
[394352696,1763482238943,-500.0,0.00018067,2]
[394352699,1763482238959,-500.0,0.00018067,2]
[394352701,1763482238969,-500.0,0.00018067,2]
[394352703,1763482238980,-500.0,0.00018067,2]
[394352704,1763482238990,-500.0,0.00018067,2]
[394352707,1763482239000,-500.0,0.00018067,2]
[394352709,1763482239010,-500.0,0.00018067,2]
[394352711,1763482239020,-500.0,0.00018067,2]
[394352712,1763482239030,-500.0,0.00018067,2]
[394352714,1763482239040,-500.0,0.00018067,2]
[394352716,1763482239050,-350.0,0.00018067,2]
[394352719,1763482239062,-500.0,0.00018073,2]
[394352721,1763482239072,-500.0,0.00018073,2]
[394352723,1763482239082,-500.0,0.00018073,2]
[394352725,1763482239092,-507.96366228,0.00018073,2]
[394352726,1763482239102,-500.0,0.00018073,2]
[394352728,1763482239112,-500.54100373,0.00018073,2]
[394352730,1763482239122,-500.0,0.00018073,2]
[394352732,1763482239131,-500.0,0.00018073,2]
[394352734,1763482239141,-553.19138914,0.00018073,2]
[394352736,1763482239150,-178.99807806,0.00018073,2]
[394352738,1763482239161,-465.67133023,0.00018073,2]
[394352739,1763482239172,-569.20872666,0.00018073,2]
[394352740,1763482239186,-160.69470372,0.00018073,2]
[394352741,1763482239196,-500.84878588,0.00018073,2]
[394352742,1763482239207,-500.0,0.00018073,2]
[394352743,1763482239217,-534.3613382,0.00018221,2]
[394352744,1763482239227,-500.0,0.00018221,2]
[394352745,1763482239237,-500.0,0.00018221,2]
[394352746,1763482239246,-166.66,0.00018235,2]
[394352747,1763482239257,-250.0,0.00018272,2]
[394352748,1763482239267,-27032.72038195,0.00018312,2]
[394352749,1763482239277,-500.0,0.00018321,2]
[394352750,1763482239288,-1000.0,0.00018321,2]
[394352752,1763482239298,-1000.0,0.00018321,2]
[394352754,1763482239309,-501.14255158,0.00018321,2]
[394352756,1763482239319,-1209.77,0.00018341,2]
[394352758,1763482239329,-166.66,0.00018604,2]
[394352760,1763482239339,-1209.77,0.00018615,2]
[394352762,1763482239349,-546.48826961,0.00018621,2]
[394352764,1763482239359,-1000.0,0.00018621,2]
[394352766,1763482239370,-502.03384973,0.00018621,2]
[394352768,1763482239380,-2000.0,0.00018716,2]
[394352770,1763482239390,-310.0,0.00018805,2]
[394352772,1763482239399,-1500.0,0.00018868,2]
[394352774,1763482239409,-1500.0,0.00018868,2]
[394352776,1763482239419,-1209.77,0.00018889,2]
[394352778,1763482239428,-166.66,0.00018972,2]
[394352780,1763482239438,-300.0,0.00019,2]
[394352782,1763482239447,-18545.64305298,0.00019,2]
[394352784,1763482239458,-223.33540763,0.00019136,2]
[394352786,1763482239470,-420.0,0.00019148,2]
[394352788,1763482239481,-1209.77,0.00019163,2]
[394352790,1763482239491,-508.2246355,0.00019168,2]
[394352792,1763482239500,-563.71,0.00019178,2]
[394352794,1763482239509,-200.0,0.00019178,2]
[394352796,1763482239519,-1680.0,0.00019243,2]
[394352798,1763482239528,-166.66,0.00019341,2]
[394352800,1763482239538,-420.0,0.00019343,2]
[394352801,1763482239547,-345.86721143,0.00019416,2]
[394352822,1763482239559,-2000.0,0.00019416,2]
[394352825,1763482239757,-1209.77,0.00019437,2]
[394352827,1763482239768,-262.46,0.00019508,2]
[394352829,1763482239778,-1209.77,0.00019711,2]
[394352831,1763482239788,-400.0,0.00019863,2]
[394352833,1763482239798,-312.29493623,0.00019964,2]
[394352835,1763482239810,-1209.77090228,0.00019985,2]
[394352838,1763482239820,-6148.55473788,0.00020214,2]
[394352840,1763482239830,-211.74376832,0.00020548,2]
[394352842,1763482239840,-5179.18372351,0.00020597,2]
[394352844,1763482239851,-388.23429918,0.00020681,2]
[394352846,1763482239861,-153.02,0.00020806,2]